bitfinex/quotes_SOLUSD_20220226
["timestamp","ask_amount","ask_price","bid_price","bid_amount"]
[1645919327954,16.6902,89.99,89.88,16.6901]
[1645919328154,55.6325,89.97,89.881,24.6006]
[1645919328355,4.448,89.969,89.881,24.6006]
[1645919328656,6.14188674,89.969,89.881,24.6006]
[1645919329055,16.6898,89.96,89.881,24.6006]
[1645919329454,16.6898,89.96,89.861,22.41209205]
[1645919329455,1.42689208,89.959,89.851,24.9393]
[1645919329680,55.6541,89.94,89.851,24.9393]
[1645919329854,5.8351873,89.939,89.851,24.9393]
[1645919331557,1.5508238,89.929,89.851,24.9393]
[1645919331759,4.449,89.928,89.851,24.9393]
[1645919332458,16.6972,89.91,89.84,2.679397]
[1645919332657,16.6972,89.91,89.811,50.93208465]
[1645919332859,16.6972,89.91,89.812,3.0498307]
[1645919333257,1.52345997,89.909,89.812,3.0498307]
[1645919333459,1.52345997,89.909,89.811,48.1865]
[1645919333958,4.45,89.908,89.811,48.1865]
[1645919334159,16.7022,89.89,89.811,48.1865]
[1645919334362,6.2857074,89.889,89.783,2.9728278]
[1645919334659,6.2857074,89.889,89.776,45.9767]
[1645919334660,29.39121264,89.889,89.776,45.9767]
[1645919334862,1.6477684,89.888,89.776,45.9767]
[1645919335059,6.10903095,89.887,89.776,45.9767]
[1645919335262,29.21453619,89.887,89.776,45.9767]
[1645919335459,1.70537996,89.886,89.776,45.9767]
[1645919335658,6.14394152,89.885,89.776,45.9767]
[1645919335859,16.7093,89.86,89.777,2.65653764]
[1645919336062,4.453,89.883,89.78,16.03]
[1645919336364,1.79811431,89.911,89.781,2.69831961]
[1645919336563,1.35028344,89.919,89.793,2.93631086]
[1645919336764,4.451,89.918,89.795,2.30498672]
[1645919337061,4.451,89.918,89.82,16.6992]
[1645919337062,16.7009,89.9,89.82,16.6992]
[1645919337280,1.65041123,89.899,89.801,3.07598252]
[1645919337482,4.45,89.898,89.795,2.76594291]
[1645919337880,4.452,89.908,89.795,2.76594291]
[1645919338483,1.757397,89.909,89.8,16.7027]
[1645919338682,1.757397,89.909,89.801,2.39031915]
[1645919339082,1.757397,89.909,89.795,2.63920596]
[1645919340486,16.7011,89.9,89.81,16.7011]
[1645919340687,16.7011,89.9,89.812,2.43678012]
[1645919341687,1.37411409,89.899,89.811,48.2228]
[1645919341887,16.7015,89.89,89.81,16.7011]
[1645919342088,16.7015,89.89,89.79,71.6977]
[1645919342089,1.8005893,89.889,89.794,47.2571]
[1645919342289,4.452,89.888,89.795,3.06799606]
[1645919342492,5.99193169,89.888,89.794,47.2571]
[1645919342693,1.74968112,89.887,89.794,47.2571]
[1645919342890,6.22861451,89.886,89.794,47.2571]
[1645919343090,29.33411975,89.886,89.794,47.2571]
[1645919343390,16.7073,89.87,89.794,47.2571]
[1645919343590,1.84977052,89.869,89.794,47.2571]
[1645919343990,4.452,89.879,89.794,47.2571]
[1645919343991,6.31702491,89.879,89.794,47.2571]
[1645919344391,16.7071,89.86,89.794,47.2571]
[1645919344591,6.31702491,89.879,89.794,47.2571]
[1645919344990,1.86502491,89.879,89.794,47.2571]
[1645919345193,1.86502491,89.879,89.795,2.33683609]
[1645919345391,1.54042952,89.889,89.795,2.33683609]
[1645919345590,1.47377646,89.898,89.795,2.33683609]
[1645919346591,16.703,89.88,89.801,2.91419018]
[1645919346992,16.703,89.88,89.795,2.66641912]
[1645919348496,16.703,89.88,89.81,16.7022]
[1645919352002,16.703,89.88,89.811,23.5305]
[1645919353305,16.703,89.88,89.812,4.452]
[1645919353906,16.703,89.88,89.82,16.7011]
[1645919354105,16.7006,89.89,89.821,7.05933558]
[1645919354305,23.10550524,89.899,89.821,7.05933558]
[1645919354505,23.10550524,89.913,89.821,4.45]
[1645919354705,23.10550524,89.913,89.822,23.5232]
[1645919354908,23.10550524,89.913,89.823,7.54001789]
[1645919355306,23.10550524,89.913,89.824,23.3803]
[1645919355505,23.10550524,89.913,89.83,16.6991]
[1645919355506,16.6987,89.9,89.83,16.6991]
[1645919355710,16.6987,89.9,89.831,7.47098848]
[1645919356009,16.6987,89.9,89.831,4.45]
[1645919356310,16.6987,89.9,89.826,4.45]
[1645919357108,16.6967,89.91,89.84,16.6973]
[1645919357309,16.6967,89.91,89.842,3.01427818]
[1645919357511,16.6967,89.91,89.842,7.46427818]
[1645919358315,16.6967,89.91,89.842,13.67427818]
[1645919358513,16.6967,89.91,89.85,16.6958]
[1645919359514,16.6967,89.91,89.851,4.45]
[1645919360315,16.6967,89.91,89.85,16.6958]
[1645919361019,16.6967,89.91,89.851,4.45]
[1645919361420,16.6967,89.91,89.85,16.6958]
[1645919364754,16.6967,89.91,89.851,4.45]
[1645919366357,16.6967,89.91,89.86,16.6947]
[1645919366556,16.694,89.92,89.86,16.6947]
[1645919366756,16.694,89.92,89.861,24.8126]
[1645919368958,16.694,89.92,89.861,29.2616]
[1645919370360,16.694,89.92,89.861,24.8126]
[1645919373668,16.694,89.92,89.861,29.2616]
[1645919374067,16.694,89.92,89.861,24.8126]
[1645919374465,16.6965,89.91,89.861,24.8126]
[1645919374666,1.86399615,89.909,89.861,24.8126]
[1645919375165,1.85520465,89.927,89.861,24.8126]
[1645919375367,55.6585,89.92,89.861,24.8126]
[1645919375566,16.6966,89.91,89.861,24.8126]
[1645919378067,1.5844591,89.909,89.861,24.8126]
[1645919378269,16.6989,89.9,89.861,24.8126]
[1645919378469,16.6989,89.9,89.83,55.6551]
[1645919378671,16.6989,89.9,89.831,27.0945]
[1645919378871,1.40827289,89.899,89.831,27.0945]
[1645919379070,1.40827289,89.899,89.84,16.6994]
[1645919379269,16.6993,89.89,89.831,27.0945]
[1645919379468,1.57180659,89.889,89.802,29.7535351]
[1645919379669,4.45,89.888,89.802,29.7535351]
[1645919380072,55.6828,89.88,89.81,16.7039]
[1645919380269,55.6828,89.88,89.811,4.45]
[1645919380468,16.7045,89.87,89.811,4.45]
[1645919380668,16.7045,89.87,89.791,4.452]
[1645919380669,1.60599788,89.869,89.791,4.452]
[1645919381070,55.6934,89.86,89.774,4.452]
[1645919381274,55.6934,89.86,89.773,4.453]
[1645919381275,1.52795144,89.859,89.773,4.453]
[1645919381475,4.453,89.858,89.773,4.453]
[1645919381872,4.453,89.858,89.772,47.0027]
[1645919382071,16.708,89.85,89.772,47.0027]
[1645919382371,55.7123,89.84,89.772,47.0027]
[1645919382571,1.87495324,89.839,89.772,47.0027]
[1645919383372,16.7137,89.83,89.772,47.0027]
[1645919383576,16.7137,89.83,89.773,4.454]
[1645919384976,16.7137,89.83,89.772,47.0027]
[1645919386280,16.7137,89.83,89.78,16.7103]
[1645919389805,16.7137,89.83,89.75,4.454]
[1645919390105,16.7164,89.81,89.751,24.759]
[1645919391806,1.42972375,89.809,89.751,24.759]
[1645919392006,16.7168,89.8,89.751,24.759]
[1645919393508,4.2,89.928,89.751,24.759]
[1645919393509,16.7146,89.81,89.751,24.759]
[1645919393708,71.7438,89.84,89.751,24.759]
[1645919393911,1.79565269,89.837,89.751,24.759]
[1645919395110,16.7129,89.82,89.751,24.759]
[1645919395310,6.12357777,89.819,89.751,24.759]
[1645919395711,5.96680925,89.829,89.736,23.2803]
[1645919395911,5.96680925,89.829,89.736,46.3794]
[1645919396111,29.07231449,89.829,89.736,46.3794]
[1645919396311,1.4336251,89.828,89.736,46.3794]
[1645919396613,16.7169,89.8,89.74,16.7173]
[1645919400912,1.53767932,89.799,89.707,2.64632071]
[1645919401112,4.456,89.798,89.707,49.20882071]
[1645919401313,16.7227,89.78,89.707,49.20882071]
[1645919401517,23.9427,89.78,89.707,49.20882071]
[1645919401916,28.81250524,89.779,89.707,49.20882071]
[1645919402116,28.81250524,89.779,89.71,16.7233]
[1645919402416,16.7233,89.76,89.707,46.5625]
[1645919403217,16.7233,89.76,89.68,58.33429648]
[1645919403418,16.7233,89.76,89.681,26.7461621]
[1645919403617,16.7233,89.76,89.7,16.725]
[1645919403820,1.8638838,89.759,89.681,24.0069]
[1645919404220,16.7284,89.74,89.681,24.0069]
[1645919405320,16.7284,89.74,89.67,16.7307]
[1645919405521,1.40073436,89.739,89.653,23.6925]
[1645919405720,16.7331,89.72,89.66,16.7323]
[1645919408120,16.7331,89.72,89.661,2.52980609]
[1645919408421,16.7302,89.73,89.67,16.7299]
[1645919408622,16.7302,89.73,89.671,2.92380049]
[1645919409223,16.7302,89.73,89.654,6.86189209]
[1645919409425,16.7302,89.73,89.654,116.86189209]
[1645919409624,16.7302,89.73,89.655,2.99180579]
[1645919409924,4.458,89.758,89.682,112.28133821]
[1645919410123,4.458,89.779,89.683,6.90117869]
[1645919410323,4.457,89.809,89.692,2.71337004]
[1645919410523,6.28048254,89.819,89.693,4.456]
[1645919410725,1.82448254,89.819,89.694,110.0]
[1645919410925,1.82448254,89.819,89.696,110.0]
[1645919411125,1.6542483,89.817,89.697,2.60810246]
[1645919411327,1.6542483,89.817,89.7,2.49012586]
[1645919411525,16.7161,89.81,89.701,114.456]
[1645919411727,16.7161,89.81,89.702,2.82289989]
[1645919411925,16.7161,89.81,89.703,4.456]
[1645919412126,16.7161,89.81,89.703,114.456]
[1645919412325,16.7161,89.81,89.704,5.40211751]
[1645919412533,1.1808529,89.773,89.73,16.7172]
[1645919412727,0.66465818,89.814,89.733,110.0]
[1645919412927,0.66465818,89.814,89.734,2.99248571]
[1645919413126,0.66465818,89.814,89.735,4.455]
[1645919413327,0.66465818,89.814,89.735,7.20178921]
[1645919413627,0.66465818,89.814,89.736,2.74678921]
[1645919413829,0.66465818,89.814,89.741,110.0]
[1645919414028,0.66465818,89.814,89.743,110.0]
[1645919414232,0.66465818,89.814,89.744,6.94738185]
[1645919414428,0.66465818,89.814,89.745,22.9433]
[1645919414631,0.66465818,89.814,89.75,16.7104]
[1645919414829,0.66465818,89.814,89.751,117.36111345]
[1645919415029,0.66465818,89.814,89.752,2.2558742]
[1645919415229,0.66465818,89.814,89.753,4.455]
[1645919415629,0.66465818,89.814,89.761,110.0]
[1645919415830,0.66465818,89.814,89.76,16.7076]
[1645919415831,0.00465818,89.814,89.8,1.4412]
[1645919416431,0.00465818,89.814,89.801,4.453]
[1645919417030,0.00465818,89.814,89.801,6.8580053]
[1645919417731,0.00465818,89.814,89.802,110.0]
[1645919417932,0.00465818,89.814,89.803,7.08584638]
[1645919418230,0.00465818,89.814,89.805,2.29990369]
[1645919418431,0.00465818,89.814,89.806,1.13210661]
[1645919418830,0.00465818,89.814,89.806,5.58510661]
[1645919423437,0.00465818,89.814,89.806,7.83897543]
[1645919423638,0.00465818,89.814,89.808,2.73097134]
[1645919424137,6.22395037,89.939,89.809,2.74678921]
[1645919424336,4.453,89.939,89.84,16.6942]
[1645919424538,23.82087357,89.93,89.841,2.29885519]
[1645919424739,28.26987357,89.945,89.842,0.25]
[1645919424936,1.7736667,89.967,89.842,0.25]
[1645919425235,6.08005094,89.979,89.842,2.99678921]
[1645919425438,6.08005094,89.979,89.843,2.74678921]
[1645919425637,27.67792451,89.979,89.845,2.68855172]
[1645919425837,1.35528706,89.978,89.846,0.25]
[1645919426036,1.35528706,89.978,89.86,16.03]
[1645919426236,1.35528706,89.978,89.89,16.6863]
[1645919426437,1.35528706,89.978,89.89,25.1463]
[1645919426637,26.04687357,89.979,89.89,25.1463]
[1645919426638,1.85211769,89.992,89.891,2.64825796]
[1645919426841,1.58312716,90.008,89.893,2.58275661]
[1645919427041,4.446,90.007,89.893,2.58275661]
[1645919427239,26.04387357,90.007,89.893,2.58275661]
[1645919427441,1.59784207,90.006,89.893,2.58275661]
[1645919427640,1.74184156,90.005,89.893,2.58275661]
[1645919427843,4.446,90.004,89.893,2.58275661]
[1645919428041,6.25546288,90.004,89.893,2.58275661]
[1645919428241,21.59787357,90.003,89.893,2.58275661]
[1645919428443,6.09277154,90.002,89.893,2.58275661]
[1645919428744,6.09277154,90.002,89.91,16.6831]
[1645919429043,1.82277513,90.001,89.91,22.1131]
[1645919430445,4.446,90.0,89.91,22.1131]
[1645919430645,1.82277513,90.001,89.911,3.07418075]
[1645919430844,1.36748442,90.009,89.92,16.6797]
[1645919431045,1.49185883,90.017,89.92,16.6797]
[1645919431345,23.0897324,90.017,89.92,16.6797]
[1645919431545,1.6301023,90.016,89.92,16.6797]
[1645919432045,1.53828571,90.014,89.92,16.6797]
[1645919432444,26.04387357,90.013,89.92,16.6797]
[1645919432646,1.43577718,90.012,89.92,16.6797]
[1645919432847,4.446,90.011,89.92,16.6797]
[1645919433046,27.86041997,90.011,89.92,16.6797]
[1645919433247,1.51421215,90.01,89.92,16.6797]
[1645919433448,4.446,90.009,89.92,16.6797]
[1645919433649,27.47074567,90.009,89.92,16.6797]
[1645919433849,1.62813296,90.008,89.92,16.6797]
[1645919436251,1.12813296,90.008,89.921,2.50995476]
[1645919436953,16.6814,90.0,89.921,2.50995476]
[1645919437152,16.6814,90.0,89.9,71.6288]
[1645919437153,1.35960342,89.999,89.901,2.90021986]
[1645919437357,4.446,89.998,89.892,51.44629719]
[1645919437556,27.70286961,89.998,89.892,48.5506]
[1645919437755,1.43827676,89.997,89.892,48.5506]
[1645919437955,4.447,89.996,89.892,48.5506]
[1645919438155,27.54874307,89.996,89.892,48.5506]
[1645919438355,1.85536522,89.994,89.892,48.5506]
[1645919438577,16.688,89.97,89.892,48.5506]
[1645919438777,1.40041296,89.969,89.892,48.5506]
[1645919439680,1.40041296,89.969,89.893,4.447]
[1645919440079,1.40041296,89.969,89.892,48.5506]
[1645919440281,16.6886,89.96,89.892,48.5506]
[1645919440478,1.38885134,89.959,89.892,48.5506]
[1645919442179,16.6886,89.96,89.892,48.5506]
[1645919442383,16.6863,89.98,89.893,6.83316154]
[1645919442580,1.4665414,89.989,89.893,6.83316154]
[1645919442781,6.17425371,89.999,89.893,6.83316154]
[1645919442982,6.17425371,89.999,89.894,111.2]
[1645919443182,6.17425371,89.999,89.895,4.447]
[1645919443386,1.72725371,89.999,89.901,111.2]
[1645919443583,1.72725371,89.999,89.903,111.2]
[1645919443783,1.84722538,90.014,89.904,2.87777424]
[1645919443985,1.84722538,90.014,89.906,111.2]
[1645919444183,1.84722538,90.014,89.908,111.2]
[1645919444386,1.84722538,90.014,89.91,111.2]
[1645919444584,16.6796,90.01,89.93,16.6797]
[1645919444889,1.66391148,90.009,89.931,2.38283566]
[1645919446486,23.26178505,90.009,89.931,2.38283566]
[1645919446685,1.69047143,90.008,89.931,2.38283566]
[1645919447088,23.288345,90.008,89.931,2.38283566]
[1645919447287,1.52125998,90.007,89.931,2.38283566]
[1645919449489,4.445,90.006,89.931,2.38283566]
[1645919449688,1.63771441,89.999,89.905,23.9133]
[1645919449891,4.446,89.998,89.905,23.9133]
[1645919450289,21.59787357,89.997,89.905,23.9133]
[1645919450490,6.21494726,89.996,89.905,23.9133]
[1645919450889,16.6877,89.98,89.905,23.9133]
[1645919451090,16.6877,89.98,89.906,2.36554114]
[1645919451490,16.6877,89.98,89.907,4.447]
[1645919451690,1.36675459,89.999,89.907,4.447]
[1645919451892,4.447,90.009,89.907,4.447]
[1645919451893,6.29071727,90.009,89.907,4.447]
[1645919452091,1.84371727,90.009,89.907,4.447]
[1645919452292,16.6804,90.0,89.91,16.6846]
[1645919452492,1.79714425,89.999,89.911,7.17340605]
[1645919453494,1.79714425,89.999,89.93,16.6804]
[1645919454193,21.59787357,90.026,89.932,2.54240675]
[1645919454397,4.445,90.045,89.935,2.97251838]
[1645919454595,23.19742364,90.046,89.936,4.444]
[1645919454795,21.59787357,90.044,89.936,4.444]
[1645919455100,6.29861157,90.043,89.936,4.444]
[1645919455298,16.6752,90.04,89.95,16.6758]
[1645919455496,16.6752,90.04,89.952,111.2]
[1645919455694,26.04187357,90.058,89.953,7.14339721]
[1645919455894,21.59787357,90.058,89.955,2.5495612]
[1645919456095,4.444,90.065,89.956,4.444]
[1645919457495,16.6696,90.06,89.97,16.6731]
[1645919457695,16.6696,90.06,89.971,7.40542988]
[1645919457897,16.6696,90.06,89.971,4.442]
[1645919458898,1.67587818,90.07,89.971,4.442]
[1645919459099,4.442,90.084,89.991,111.2]
[1645919459400,4.442,90.084,89.993,111.2]
[1645919459598,112.2,90.11,89.995,111.2]
[1645919459799,21.59787357,90.114,90.001,111.2]
[1645919459999,16.6622,90.1,90.01,16.664]
[1645919460200,5.84342958,90.099,90.002,25.3034957]
[1645919460405,27.44130315,90.099,90.002,25.3034957]
[1645919460704,23.42562039,90.098,90.003,3.08364608]
[1645919460901,6.15264866,90.097,90.003,3.08364608]
[1645919461100,27.75052223,90.097,90.003,3.08364608]
[1645919461301,1.42238683,90.096,90.003,3.08364608]
[1645919461503,4.442,90.095,90.002,22.8859]
[1645919461701,1.82226174,90.095,90.002,22.8859]
[1645919462100,23.42013531,90.095,90.002,22.8859]
[1645919462299,1.40438926,90.094,90.002,22.8859]
[1645919462502,16.6685,90.07,90.002,22.8859]
[1645919462701,18.20106049,90.07,90.002,22.8859]
[1645919462900,16.6685,90.07,90.002,22.8859]
[1645919464403,16.6685,90.07,90.01,16.6668]
[1645919464603,16.6659,90.08,90.011,2.34124236]
[1645919466503,16.6659,90.08,90.01,16.6668]
[1645919467102,16.6659,90.08,90.011,2.9052261]
[1645919467302,16.6659,90.08,90.02,16.6649]
[1645919467503,16.6639,90.09,90.021,2.31549465]
[1645919467902,1.1851002,90.097,90.021,2.31549465]
[1645919468107,1.1851002,90.097,90.017,7.21]
[1645919468404,1.1851002,90.097,90.019,2.36543264]
[1645919468602,1.1851002,90.097,90.03,16.6628]
[1645919469002,1.1851002,90.097,90.031,2.974396]
[1645919469503,1.1851002,90.097,90.021,2.49508616]
[1645919470506,1.1851002,90.097,90.04,16.6611]
[1645919470705,1.1851002,90.097,90.041,2.91269034]
[1645919471902,16.6638,90.09,90.021,3.06985672]
[1645919475508,16.6638,90.09,90.03,16.6633]
[1645919475708,16.6638,90.09,90.031,2.56070964]
[1645919478211,16.6614,90.1,90.04,16.6618]
[1645919478410,112.2,90.12,90.041,2.8897074]
[1645919478614,112.2,90.12,90.041,25.4532074]
[1645919478813,112.2,90.12,90.042,2.46853448]
[1645919479013,21.59787357,90.136,90.042,113.66853448]
[1645919479213,21.59787357,90.136,90.06,16.6575]
[1645919479416,21.59787357,90.136,90.061,3.00459499]
[1645919479836,21.59787357,90.136,90.06,6.43]
[1645919480637,16.6544,90.14,90.08,16.6544]
[1645919480839,16.6544,90.14,90.081,2.67901616]
[1645919481135,21.59787357,90.149,90.081,10.67901616]
[1645919481333,21.59787357,90.149,90.081,8.0]
[1645919482534,21.59787357,90.149,90.09,16.6518]
[1645919483135,21.59787357,90.149,90.091,2.42533598]
[1645919484636,1.1851002,90.127,90.091,2.42533598]
[1645919485838,8.3992848,90.161,90.103,111.2]
[1645919486040,200.37,90.23,90.103,111.2]
[1645919486041,112.2,90.2,90.104,113.70185149]
[1645919486239,112.2,90.2,90.105,2.55152202]
[1645919486240,8.3992848,90.192,90.105,2.55152202]
[1645919486437,112.2,90.2,90.105,2.55152202]
[1645919487439,128.8434,90.2,90.131,2.49392608]
[1645919488040,112.2,90.2,90.131,2.49392608]
[1645919488243,21.59787357,90.19,90.131,2.49392608]
[1645919488441,112.2,90.2,90.131,2.49392608]
[1645919488844,16.6457,90.19,90.131,2.49392608]
[1645919489043,16.6457,90.19,90.111,24.6221]
[1645919489044,16.6457,90.19,90.121,3.09757139]
[1645919489245,5.85382811,90.189,90.091,3.06065762]
[1645919489449,76.43253501,90.189,90.062,48.68647094]
[1645919489646,56.51935052,90.188,90.063,3.04368316]
[1645919489847,6.10293054,90.187,90.063,3.04368316]
[1645919490047,16.6545,90.18,90.063,3.04368316]
[1645919490246,5.99987054,90.179,90.063,3.04368316]
[1645919490447,5.99987054,90.179,90.063,114.24368316]
[1645919490650,22.8372069,90.178,90.064,3.092158]
[1645919490851,5.93193192,90.177,90.064,3.092158]
[1645919491254,22.8372069,90.176,90.064,3.092158]
[1645919491450,16.6512,90.17,90.09,16.6517]
[1645919491651,32.6812,90.17,90.064,3.092158]
[1645919491850,28.73067876,90.169,90.064,3.092158]
[1645919492050,1.64708474,90.168,90.064,3.092158]
[1645919492251,4.438,90.167,90.064,3.092158]
[1645919492454,6.19398106,90.167,90.064,3.092158]
[1645919492652,16.657,90.16,90.07,16.6544]
[1645919492854,1.77662384,90.159,90.071,3.03404389]
[1645919493252,24.61383074,90.159,90.071,3.03404389]
[1645919493453,24.42888262,90.158,90.071,3.03404389]
[1645919493653,1.4892469,90.157,90.071,3.03404389]
[1645919495455,4.438,90.156,90.071,3.03404389]
[1645919496054,111.2,90.154,90.032,4.438]
[1645919496357,56.57928721,90.139,90.032,2.57964778]
[1645919496558,71.0,90.13,90.032,2.57964778]
[1645919496754,16.03,90.12,90.032,2.57964778]
[1645919496957,1.710664,90.119,90.032,2.57964778]
[1645919497554,16.6625,90.11,90.032,2.57964778]
[1645919508264,1.40604425,90.109,90.032,2.57964778]
[1645919508469,16.6664,90.09,90.01,16.6664]
[1645919508665,16.6664,90.09,90.011,27.55777574]
[1645919508865,16.6664,90.09,90.012,2.43535326]
[1645919509267,1.41116075,90.089,90.012,2.43535326]
[1645919509470,9.26116075,90.089,90.011,24.5928]
[1645919509667,16.6693,90.07,90.008,23.6656]
[1645919513503,16.6693,90.07,89.992,2.8577917]
[1645919515672,1.62080136,90.069,89.991,24.904]
[1645919516072,16.6724,90.05,89.991,24.904]
[1645919517776,16.6724,90.05,89.972,2.88600185]
[1645919519378,16.6724,90.05,89.973,22.528]
[1645919519579,16.6724,90.05,89.974,3.12332934]
[1645919520484,16.6724,90.05,89.98,16.6713]
[1645919520684,16.6724,90.05,89.981,2.54079981]
[1645919529710,16.6724,90.05,89.991,2.47996155]
[1645919529910,16.6671,90.06,89.991,2.47996155]
[1645919530112,55.5624,90.08,89.974,2.40858681]
[1645919530811,55.5624,90.08,89.975,2.87493305]
[1645919531614,16.666,90.07,90.01,16.6665]
[1645919531814,4.442,90.107,90.011,114.01033554]
[1645919532017,4.441,90.137,90.013,111.2]
[1645919532215,4.441,90.137,90.014,2.51689832]
[1645919533116,1.87435808,90.137,90.014,2.51689832]
[1645919533514,16.6582,90.11,90.03,16.6604]
[1645919533713,16.6582,90.11,90.032,2.67427201]
[1645919535614,16.6582,90.11,90.04,16.6603]
[1645919535815,16.6582,90.11,90.041,2.7579511]
[1645919537116,33.6188,90.11,90.041,2.7579511]
[1645919546228,33.6188,90.11,90.032,2.60320755]
[1645919546428,112.89444404,90.109,90.001,2.7138784]
[1645919546627,16.6715,90.08,89.993,26.28329195]
[1645919546927,1.83626149,90.079,89.994,2.8543839]
[1645919547728,16.6726,90.06,89.994,2.8543839]
[1645919549528,16.6726,90.06,89.993,23.164]
[1645919549931,1.73734923,90.059,89.993,23.164]
[1645919550130,16.6759,90.04,89.993,23.164]
[1645919550329,23.6159,90.04,89.977,23.171]
[1645919552733,40.0859,90.04,89.977,23.171]
[1645919552933,1.53347773,90.039,89.96,2.60899466]
[1645919553134,16.6773,90.02,89.955,2.63677785]
[1645919554937,16.6773,90.02,89.96,16.6764]
[1645919555136,16.6773,90.02,89.961,2.62797562]
[1645919555737,16.6728,90.03,89.956,118.43023204]
[1645919555936,16.6728,90.03,89.97,16.6744]
[1645919556237,16.6728,90.03,89.956,2.78623204]
[1645919559537,16.6728,90.03,89.96,16.6766]
[1645919559739,16.6728,90.03,89.961,2.58891006]
[1645919560240,16.6728,90.03,89.955,2.9568216]
[1645919560841,16.6728,90.03,89.956,4.444]
[1645919561048,16.6728,90.03,89.955,2.9568216]
[1645919561342,16.6728,90.03,89.954,23.9328]
[1645919561540,1.59780329,90.029,89.954,23.9328]
[1645919561743,16.6785,90.01,89.954,23.9328]
[1645919561941,18.37401189,90.01,89.954,23.9328]
[1645919562942,16.6785,90.01,89.954,23.9328]
[1645919563143,16.6747,90.02,89.954,23.9328]
[1645919563345,1.75025094,90.039,89.954,23.9328]
[1645919563744,1.75025094,90.039,89.96,16.6769]
[1645919563951,1.6977182,90.048,89.96,16.6769]
[1645919565449,16.673,90.03,89.96,16.6769]
[1645919568663,1.36438342,90.029,89.96,16.6769]
[1645919569065,16.6749,90.02,89.96,16.6769]
[1645919569464,1.4629909,90.019,89.96,16.6769]
[1645919569663,1.81595083,90.039,89.96,16.6769]
[1645919570067,16.6759,90.01,89.96,16.6769]
[1645919570268,1.83429065,90.009,89.954,23.9328]
[1645919570768,1.76602208,90.037,89.954,23.9328]
[1645919571169,16.679,90.0,89.954,23.9328]
[1645919574971,16.6763,90.01,89.96,16.677]
[1645919578375,16.6743,90.02,89.96,16.677]
[1645919580183,18.17816207,90.02,89.961,111.2]
[1645919580382,16.6723,90.03,89.961,111.2]
[1645919580682,55.5729,90.06,89.99,16.6696]
[1645919580882,57.18755549,90.06,89.991,22.671]
[1645919581084,1.80107554,90.059,89.991,22.671]
[1645919581283,16.6691,90.05,89.991,22.671]
[1645919582987,16.6691,90.05,90.0,16.6706]
[1645919587290,16.6673,90.06,90.0,16.6706]
[1645919587491,1.84377265,90.078,90.0,16.6706]
[1645919587690,1.43347174,90.087,90.0,16.6706]
[1645919587890,1.45569251,90.1,90.02,16.6639]
[1645919588091,1.68732832,90.119,90.021,24.6231]
[1645919588293,1.68732832,90.119,90.03,55.5358]
[1645919588592,1.748365,90.099,90.03,55.5358]
[1645919588992,22.92667528,90.124,90.03,55.5358]
[1645919589193,5.88126473,90.123,90.03,55.5358]
[1645919589397,27.31395534,90.123,90.03,55.5358]
[1645919589594,55.5448,90.11,90.04,16.6618]
[1645919589794,1.38277454,90.109,90.041,23.0453]
[1645919591498,16.6615,90.1,90.05,16.6612]
[1645919591697,1.55212028,90.099,90.05,16.6612]
[1645919592096,1.81758873,90.109,90.05,16.6612]
[1645919593600,16.6617,90.09,90.05,16.6612]
[1645919593797,1.81758873,90.109,90.05,16.6612]
[1645919594199,1.81758873,90.109,90.05,16.1612]
[1645919594400,1.73202294,90.121,90.05,16.1612]
[1645919595600,16.6607,90.1,90.05,16.1612]
[1645919598125,16.6589,90.11,90.05,16.1612]
[1645919599426,16.6574,90.12,90.05,16.1612]
[1645919599629,16.6574,90.12,90.05,23.0912]
[1645919599826,16.7603,90.127,90.05,23.0912]
[1645919601928,16.7603,90.127,90.051,111.2]
[1645919602126,16.7603,90.127,90.07,16.6553]
[1645919602526,16.7603,90.127,90.071,111.2]
[1645919603126,1.41845355,90.169,90.071,111.2]